{"text_format":"1","workbook":"xlsx","n_sheets":11,"sheets":["Анкета 1","Анкета 2","Обороты","Прил. 1","Прил. 2","Прил. 3","Прил. 4.1","Прил. 4.2","Прил. 5","data","data_work"],"not_rendered":{"charts":0,"images":0,"macros":1,"external_links":0,"defined_names":105,"comments":0,"pivot_tables":0},"unopened":[],"bounds":{"document_bytes":16777216,"sheet_cells":100000,"rows_first":2000,"rows_last":500,"rows_between":2000,"halvings":0,"cell_chars":16384,"cell_head_chars":4096},"cells_cut":0,"cells_raw":0,"read":"whole","date_system":"1900"}

{"sheet":"Анкета 1","index":0,"n_rows":245,"n_cols":7,"rows_kept":245,"cut":false,"hidden":false,"merged":[[28,1,28,4],[28,5,28,6],[17,1,17,6],[23,1,23,4],[23,5,23,6],[24,1,24,4],[24,5,24,6],[25,1,25,4],[25,5,25,6],[26,1,26,4],[26,5,26,6],[27,1,27,4],[27,5,27,6],[18,1,18,4],[18,5,18,6],[19,1,19,4],[19,5,19,6],[20,1,20,4],[20,5,20,6],[21,1,21,4],[21,5,21,6],[22,1,22,4],[22,5,22,6],[76,1,76,3],[77,1,77,3],[62,4,62,6],[41,3,41,6],[65,1,65,6],[42,3,42,6],[41,1,41,2],[94,1,94,6],[54,1,54,6],[66,1,66,6],[68,1,68,6],[44,1,44,6],[92,1,92,6],[93,1,93,6],[53,1,53,6],[42,1,42,2],[56,1,56,5],[59,4,59,6],[60,4,60,6],[63,4,63,6],[58,4,58,6],[71,1,71,3],[72,1,72,3],[69,1,69,6],[73,1,73,3],[74,1,74,3],[9,1,9,4],[9,5,9,6],[75,1,75,3],[39,3,39,6],[11,1,11,4],[12,1,12,4],[13,1,13,4],[33,1,33,2],[34,1,34,2],[14,1,14,4],[15,1,15,4],[16,1,16,4],[34,3,34,6],[36,1,36,2],[37,1,37,2],[38,1,38,2],[33,3,33,6],[39,1,40,1],[36,3,36,6],[40,3,40,6],[35,1,35,2],[37,3,37,6],[38,3,38,6],[61,4,61,6],[134,1,134,6],[135,1,135,6],[212,5,212,6],[213,5,213,6],[114,1,114,6],[115,1,115,6],[0,1,0,6],[3,2,3,6],[5,1,5,6],[32,1,32,6],[6,5,6,6],[7,5,7,6],[8,5,8,6],[10,5,10,6],[11,5,11,6],[12,5,12,6],[13,5,13,6],[14,5,14,6],[15,5,15,6],[16,5,16,6],[6,1,6,4],[7,1,7,4],[8,1,8,4],[10,1,10,4],[86,2,86,3],[101,3,101,4],[85,2,85,3],[82,2,82,3],[83,2,83,3],[84,2,84,3],[221,1,221,2],[221,4,221,5],[220,1,220,6],[218,1,218,6],[98,3,98,4],[99,3,99,4],[102,3,102,4],[103,3,103,4],[96,1,96,5],[215,5,215,6],[216,5,216,6],[138,2,138,3],[139,2,139,3],[140,2,140,3],[141,2,141,3],[142,2,142,3],[214,5,214,6],[239,1,239,2],[223,1,223,6],[224,1,224,6],[225,1,225,6],[226,1,226,6],[232,1,232,2],[233,1,233,2],[238,1,238,2],[227,1,227,6],[79,2,79,5],[117,1,117,6],[118,1,118,6],[146,1,146,6],[149,1,149,6],[208,1,208,5],[210,5,210,6],[87,2,87,3],[88,2,88,3],[90,1,90,6],[100,3,100,4],[105,2,105,4],[80,2,80,5],[119,1,119,6],[131,1,131,6],[132,1,132,6],[205,1,205,6],[206,2,206,6],[152,1,152,6],[137,2,137,5],[148,1,148,6],[145,1,145,6],[194,1,194,6],[192,1,192,5],[211,5,211,6],[121,1,121,6],[122,1,122,6],[123,1,123,6],[128,1,128,6],[129,1,129,6],[125,1,125,6],[126,1,126,6],[151,1,151,6],[189,1,189,6],[154,1,154,6],[176,1,176,6],[182,1,182,6],[196,1,196,5],[190,1,190,2],[190,4,190,5],[173,1,173,5]]}
[null,"Выберите тип анкеты"]
[]
[null,"Дата оформления "]
[null,"Место предоставления "]
[]
[null,"Запрашиваемые параметры кредитного продукта"]
[null,"Вид кредитного продукта\n(единовременный кредит, возобновляемая/невозобновляемая кредитная линия, овердрафт, банковская гарантия, лимит выдачи банковских гарантий, непокрытый аккредитив, аккредитив с постфинансированием)"]
[null,"Целевое назначение"]
[null,"Наименование Бенефициара/Лизингополучателя\n(указывается в заявке на предоставление банковских гарантий)/ Государственный заказчик (указывается в заявке на предоставление кредитных продуктов головному исполнителю для обеспечения деятельности в целях исполнения государственного оборонного заказа)/ Заказчик (указывается в заявке на контрактное финансирование)"]
[null,"Аванс Лизингополучателя, %"]
[null,"Срок (график погашения – при наличии), мес."]
[null,"Сумма (лимит), тыс. руб."]
[null,"Процентная ставка (по траншам), процентов годовых"]
[null,"Валюта"]
[null,"Идентификатор государственного контракта (указывается в заявке на предоставление кредитных продуктов головному исполнителю, исполнителю в целях исполнения государственного оборонного заказа)/ номер и дата финансируемого/гарантируемого контракта"]
[null,"Предлагаемый залог/ заклад (вексель, гарантийный депозит) \n(с указанием основных характеристик предмета залога, адреса хранения залога и полного фирменного наименования и ИНН залогодателя)"]
[null,"Поручительство/ гарантия \n(полное фирменное наименование и ИНН или фамилия, имя, отчество поручителя/гаранта)"]
[]
[null,"Вид кредитного продукта\n(единовременный кредит, возобновляемая/невозобновляемая кредитная линия, овердрафт, банковская гарантия, лимит выдачи банковских гарантий, непокрытый аккредитив, аккредитив с постфинансированием)"]
[null,"Целевое назначение"]
[null,"Наименование Бенефициара/Лизингополучателя\n(указывается в заявке на предоставление банковских гарантий)/ Государственный заказчик (указывается в заявке на предоставление кредитных продуктов головному исполнителю для обеспечения деятельности в целях исполнения государственного оборонного заказа)/ Заказчик (указывается в заявке на контрактное финансирование)"]
[null,"Аванс Лизингополучателя, %"]
[null,"Срок (график погашения – при наличии), мес."]
[null,"Сумма (лимит), тыс. руб."]
[null,"Процентная ставка (по траншам), процентов годовых"]
[null,"Валюта"]
[null,"Идентификатор государственного контракта (указывается в заявке на предоставление кредитных продуктов головному исполнителю, исполнителю в целях исполнения государственного оборонного заказа)/ номер и дата финансируемого/гарантируемого контракта"]
[null,"Предлагаемый залог/ заклад (вексель, гарантийный депозит) \n(с указанием основных характеристик предмета залога, адреса хранения залога и полного фирменного наименования и ИНН залогодателя)"]
[null,"Поручительство/ гарантия \n(полное фирменное наименование и ИНН или фамилия, имя, отчество поручителя/гаранта)"]
[]
[]
[]
[null,"Общие сведения об организации"]
[null,"Полное наименование: "]
[null,"Дата регистрации: "]
[null,"Данные о регистрации организации:",null,"ИНН:",null,"ОГРН:"]
[null,"Место постановки на налоговый учет:\n(информация предоставляется за последний календарный год с указанием причин изменения (в случае наличия)"]
[null,"Принадлежность к Группе компаний:"]
[null,"Размер уставного капитала (оплачен полностью или нет): "]
[null,"Адрес местонахождения и почтовый адрес:\n(договор аренды помещения является приложением к Анкете, в случае наличия помещения в собственности предоставляются документы, подтверждающие права собственности)","Юридический адрес:"]
[null,null,"Адрес местонахождения:"]
[null,"Вид деятельности Заемщика (фактический):"]
[null,"Наличие филиалов, отделений, представительств и т.п.: (адреса местонахождений)"]
[]
[null,"Руководство организации"]
[]
[null,"Должность","Ф.И.О.","Образование","Стаж работы в организации","Срок полномочий","Участие в капитале Общества (Да / Нет, доля в %)"]
[]
[]
[]
[]
[]
[]
[null,"Комментарии (при наличии):"]
[null,"Например: Полномочия единоличного исполнительного органа (генерального директора) в полном объеме переданы управляющей организации - ООО «________» на неопределенный срок (основание-Выписка №1 из протокола внеочередного Общего собрания от _________ г., Договор № _____ от ________ г. в редакции Дополнительного соглашения №____ от ________ г.). и тд."]
[]
[null,"Изменения единоличного исполнительного органа произошли три и более раз за последний календарный год:",null,null,null,null,"Да/Нет"]
[]
[null,"Должность","Ф.И.О ","Срок полномочий","Причины смены руководителя"]
[]
[]
[]
[]
[]
[]
[]
[null,"В случае отсутствия в штате должности главного бухгалтера или бухгалтерской службы, указать каким образом ведется бухгалтерский учет (ведение бухгалтерского учета передано на договорных началах специализированной организации (аудиторской фирме)/ бухгалтеру-специалисту (индивидуальному аудитору)/ руководитель организации ведет бухгалтерский учет лично/др.). Дополнительно предоставить информацию о лице, исполняющим обязанности главного бухгалтера, или заключенный договор аутсорсинга."]
[]
[null,"Сведения об участниках (акционерах) организации"]
[null,"владеющих не менее чем 1% (одним процентом) его уставного капитала или не менее чем 1% (процентами) его обыкновенных акций с учётом данных о клиентах номинальных держателей:"]
[]
[null,"Ф.И.О. / Наименование организации",null,null,"ИНН","Доля в УК, %","Дата внесения в ЕРГЮЛ"]
[]
[]
[]
[]
[]
[null,"ИТОГО",null,null,null,{"$f":"SUM(F73:F77)","v":0}]
[]
[null,null,"Сведения о бенефициарных владельцах"]
[null,null,"физических лицах, которые, в конечном счете, прямо или косвенно (через третьих лиц, в том числе через юридическое лицо, нескольких юридических лиц либо группу связанных юридических лиц) владеют (имеют преобладающее участие более 25 процентов в капитале) организацией – юридическим лицом либо прямо или косвенно контролирует действия Заемщика, в том числе имеет возможность определять решения, принимаемые Заемщиком:"]
[]
[null,null,"Ф.И.О.",null,"ИНН","Контролируемая доля, %"]
[]
[]
[]
[]
[]
[null,null,"ИТОГО",null,null,{"$f":"SUM(F84:F88)","v":0}]
[]
[null,"Наименование и ИНН дочерних и зависимых компаний, входящих с юр.лицом, подавшим заявку, в состав финансово-промышленных групп и холдингов (в том числе неформальных), схема операционных и финансовых взаимоотношений между компаниями холдинга указываются в Приложении 1, в Приложении 5 к Заявке-Анкете:"]
[]
[null,"Описание деятельности организации в разрезе ее основных видов (с указанием срока ведения). Отражение особенностей деятельности организации (наличие сезонного характера деятельности, использование давальческих схем, работа по агентским договорам или договорам комиссии и др.): "]
[]
[null,"(направления деятельности, выпускаемая/ реализуемая продукция/услуги, описание схемы взаимодействия (бизнес-модели), материально технической базы (наличие собственных/ арендованных активов) клиента, возможность увеличения объема продаж за счет избытка мощностей или иных способов (указать), наличие сезонности/цикличности в бизнесе (указать причины, срок цикла производства и реализации, факторы, влияющие на изменение цикла) и пр.)"]
[]
[null,"Наличие лицензий и разрешений, срок их действия:",null,null,null,null,"Да/Нет"]
[]
[null,"Сокращенное наименование лицензиата (Компании, ИП)","ИНН лицензиата","Основные виды деятельности Компании подлежащие лицензированию",null,"Наименование лицензирующего органа","Состояние/срок окончания"]
[]
[]
[]
[]
[]
[]
[null,null,"Наличие рейтингов долгосрочной кредитоспособности: ",null,null,"Да/Нет"]
[]
[null,null,"Рейтинговое агентство","Рейтинг","Дата присвоения рейтинга","Дата пересмотра"]
[null,null,"Standard & Poor’s"]
[null,null,"Fitch Ratings"]
[null,null,"Moody's "]
[null,null,"Эксперт РА"]
[null,null,"АКРА"]
[]
[null,"Общая характеристика ситуации в основной отрасли деятельности организации: "]
[]
[]
[null,"Внешние условия деятельности:"]
[]
[null,"- сезонные факторы и их влияние на деятельность организации;\n- наличие имущества ограниченного оборота;\n- необходимость осуществления дорогостоящих природоохранных мероприятий;\n- географическое положение, экономические условия региона, налоговые условия региона;\n- имеющиеся торговые ограничения, финансовое стимулирование (использование программ субсидирования или иной гос.поддержки)."]
[]
[null,"Внутренние условия деятельности:"]
[]
[null,"- основные направления деятельности, основные виды выпускаемой продукции, текущие и планируемые объемы производства;\n- состав основного и вспомогательного производства;\n- загрузка производственных мощностей;\n- объекты непроизводственной сферы и затраты на их содержание;     \n- основные объекты, не завершенные строительством, размер средств, необходимых для завершения строительных работ, и срок возможного пуска в эксплуатацию объектов;     \n- перечень структурных подразделений и схема структуры управления организацией;     \n- наличие собственных либо находящихся в пользовании на основании договора аренды[1] основных средств или иного имущества, необходимых для осуществления деятельности (производственных мощностей, складских помещений, транспортных средств, торговых точек, офисных помещений и прочих) с их указанием."]
[]
[null,"Доля организации на рынке (область (край, республика), Федеральный округ, страна):"]
[]
[]
[null,"Основные конкуренты: "]
[]
[]
[null,"Конкурентные преимущества организации и недостатки:"]
[]
[]
[null,"Планы по расширению/ сохранению/ уменьшению объемов бизнеса  в период действия кредитного продукта:"]
[]
[]
[null,null,"Структура выручки по видам валют"]
[null,null,"Размер выручки за последние 12 мес.",null,"тыс. руб.","Доля, %"]
[null,null,"Рубли",null,null,{"$f":"IFERROR(E140/$E$143,0)","v":0}]
[null,null,"Доллары США",null,null,{"$f":"IFERROR(E141/$E$143,0)","v":0}]
[null,null,"Евро",null,null,{"$f":"IFERROR(E142/$E$143,0)","v":0}]
[null,null,"ИТОГО",null,{"$f":"SUM(E140:E142)","v":0},{"$f":"SUM(F140:F142)","v":0}]
[]
[]
[null,"Данные о внешнеэкономической деятельности (импорт сырья и материалов, продукции) (наличие/отсутствие; в случае наличия указывается краткое описание внешнеэкономической деятельности): "]
[]
[]
[null,"Доля импорта в деятельности (в разрезе стран) за последние 4 календарных квартала:"]
[]
[]
[null," Действующий портфель контрактов:"]
[null,"Рекомендованная форма предоставления приведена в  Приложении 2 к Заявке-Анкете"]
[]
[null,"Основные контрагенты. Объем продаж / закупок за 12 мес."]
[null,"Контрагент","продукция","тыс. руб.","доля, %","Условия расчетов\nпо договору с указанием количества дней отсрочки","Компания аффилирована с Заемщиком"]
[null,"Покупатели"]
[]
[]
[]
[]
[]
[null,"ПРОЧИЕ"]
[null,"ИТОГО",null,{"$f":"SUM(D158:D163)","v":0},{"$f":"SUM(E158:E163)","v":0}]
[null,"Поставщики"]
[]
[]
[]
[]
[]
[null,"ПРОЧИЕ"]
[null,"ИТОГО",null,{"$f":"SUM(D166:D171)","v":0},{"$f":"SUM(E166:E171)","v":0}]
[]
[null,"Информация о наличии судебных разбирательств:",null,null,null,null,"Да/Нет"]
[]
[null,"Истец","Ответчик","Сумма иска, руб.","Причина судебного разбирательства, комментарии","Номер и дата иска","Текущее состояние дела, перспективы судебного решения"]
[null,"Решение судом не принято "]
[]
[]
[]
[]
[]
[null,"Принято решение судом"]
[]
[]
[]
[]
[]
[]
[null,"Прочая информация"]
[null,"Общая численность работающих в организации, человек",null,null,"Ежемесячный ФОТ, руб."]
[]
[null,"Информация о наличии / отсутствии просроченной задолженности перед работниками по заработной плате с указанием среднемесячной заработной платы на одного работника:",null,null,null,null,"Да/Нет"]
[]
[null,"Заполняется Клиентом самостоятельно с указанием суммы задолженности, срока возникновения, причины возникновения, сроков погашения задолженности"]
[]
[null,"Информация о наличии/отсутствии задолженности перед бюджетом/ внебюджетными фондами:",null,null,null,null,"Да/Нет"]
[]
[null,null,"Наименование ИФНС РФ","Сумма задолженности, руб.","Дата возникновения","Планируемая дата погашения"]
[]
[]
[]
[]
[]
[]
[null,"Взаимоотношения организации с банками"]
[null,"Обслуживающие банки:"]
[]
[null,"Наличие Картотеки в банках с указанием суммы и наименования банка:",null,null,null,null,"Да/Нет"]
[]
[null,"Наименование кредитной организации","Сумма задолженности, рублей","Дата возникновения","Дата планируемого погашения","Причина возникновения"]
[]
[]
[]
[]
[]
[null,"ИТОГО",{"$f":"SUM(C212:C216)","v":0}]
[]
[null,"Чистый кредитовый оборот по счетам Заемщика (поступления выручки) за последние 12 месяцев"]
[]
[null,"Взаимоотношения с АО «АБ «РОССИЯ»"]
[null,"Наличие счета в АО АБ «РОССИЯ»:",null,"да/нет","Дата открытия счета в АО АБ «РОССИЯ»:"]
[]
[null,"Должностное лицо, уполномоченное руководителем организации для осуществления контактов с Банком:"]
[]
[]
[null," (Должность, Ф.И.О.)"]
[null,"Обработка персональных данных, указанных в настоящей заявке-анкете, осуществляется Акционерным обществом «Акционерный Банк «РОССИЯ», расположенным по адресу Россия, 191124, г. Санкт-Петербург, пл. Растрелли, д. 2, лит. А (далее – Банк), с целью принятия решения о предоставлении услуг по кредитованию юридических лиц/индивидуальных предпринимателей, в связи с заключением и исполнением Кредитного договора (далее – Договор). Обработка осуществляется как с использованием средств автоматизации, так и без их использования следующими способами: сбор, запись, систематизация, накопление, хранение, уточнение (обновление, изменение), извлечение, использование, передача (предоставление, доступ) обезличивание, блокирование, удаление, уничтожение. Настоящая заявка-анкета, содержащиеся в ней персональные данные подлежат уничтожению по истечении 5 (пяти) лет после исполнения обязательств по Договору, если иное не установлено законодательством Российской Федерации."]
[]
[null,"e-mail",null,"моб. тел.",null,"e-mail"]
[]
[]
[]
[null,"(Должность руководителя)",null,null,"(Ф.И.О. руководителя)",null,"(Подпись руководителя)"]
[]
[null,"e-mail",null,"моб. тел.",null,"e-mail"]
[]
[]
[]
[null,"(Должность гл. бухгалтера)",null,null,"(Ф.И.О. гл. бухгалтера)",null,"(Подпись гл. бухгалтера)"]
[]
[null,"e-mail",null,"моб. тел.",null,"e-mail"]
[]
[]
[null,null,"М.П.",null,null,null,"20  г."]

{"sheet":"Анкета 2","index":1,"n_rows":109,"n_cols":10,"rows_kept":109,"cut":false,"hidden":false,"merged":[[108,8,108,9],[50,1,50,9],[51,1,51,9],[60,1,60,9],[61,1,61,9],[75,1,75,9],[77,1,77,9],[79,1,79,9],[81,1,81,9],[82,1,82,9],[83,1,83,9],[84,1,84,9],[85,1,85,9],[87,1,87,9],[88,1,88,9],[89,1,89,9],[11,1,11,9],[30,1,30,9],[31,1,31,9],[40,1,40,9],[41,1,41,9],[13,1,13,9],[20,1,20,9],[21,1,21,9],[3,1,3,9],[1,1,1,9],[72,1,72,9],[73,1,73,9],[74,1,74,9],[70,1,70,9],[71,1,71,9],[63,1,63,8],[23,1,23,9],[65,1,65,9],[67,1,67,9],[69,1,69,9],[33,1,33,9],[53,1,53,9],[43,1,43,9],[10,1,10,9],[90,1,90,9],[97,1,97,2],[96,1,96,2],[102,1,102,2],[91,1,91,9],[103,1,103,2],[96,4,96,6],[97,4,97,6],[103,4,103,6],[102,4,102,6],[103,8,103,9],[93,8,93,9],[96,8,96,9],[97,8,97,9],[99,8,99,9],[102,8,102,9]]}
[]
[null,{"$f":"\"КРЕДИТНАЯ ИСТОРИЯ ЗА 12 МЕСЯЦЕВ ПО СОСТОЯНИЮ НА \" & TEXT(form_date,\"ДД.ММ.ГГГ\")","v":"КРЕДИТНАЯ ИСТОРИЯ ЗА 12 МЕСЯЦЕВ ПО СОСТОЯНИЮ НА 00.01.1900"}]
[]
[null,"Банковские кредиты"]
[null,"Наименование кредитора","Дата договора о кредитовании","Валюта кредита","Максимальный лимит кредитования,\nтыс. руб.","Остаток ссудной задолженности,\nтыс. руб.","Вид","Ставка,\n% годовых","Дата возврата по договору","Вид обеспечения"]
[]
[]
[]
[null,"ИТОГО",null,null,{"$f":"SUM(E6:E8)","v":0},{"$f":"SUM(F6:F8)","v":0}]
[]
[null,"Комментарии:"]
[]
[]
[null,"Небанковские ссуды, займы"]
[null,"Наименование кредитора","Дата договора о кредитовании","Валюта кредита","Максимальный лимит кредитования,\nтыс. руб.","Остаток ссудной задолженности,\nтыс. руб.","Вид","Ставка,\n% годовых","Дата возврата по договору","Вид обеспечения"]
[]
[]
[]
[null,"ИТОГО",null,null,{"$f":"SUM(E16:E18)","v":0},{"$f":"SUM(F16:F18)","v":0}]
[]
[null,"Комментарии:"]
[]
[]
[null,"Банковские гарантии/непокрытые аккредитивы"]
[null,"Гарант","Бенефициар","Дата гарантии","Вид гарантии","Сумма лимита,\nтыс. руб.","Сумма гарантии,\nтыс. руб.","Размер комиссии,\n% годовых","Дата окончания действия","Вид обеспечения"]
[]
[]
[]
[null,"ИТОГО",null,null,null,{"$f":"SUM(F26:F28)","v":0},{"$f":"SUM(G26:G28)","v":0}]
[]
[null,"Комментарии:"]
[]
[]
[null,"Выданные поручительства/предоставленные обеспечения (на последнюю отчетную дату)"]
[null,"Наименование Банка-кредитора","Наименование заемщика","ИНН заемщика","Остаток задолженности,\nтыс. руб.","Дата окончания договора","Ставка","Вид обеспечения","Рыночная стоимость обеспечения","Залоговая стоимость обеспечения"]
[]
[]
[]
[null,"ИТОГО",null,null,{"$f":"SUM(E36:E38)","v":0}]
[]
[null,"Комментарии:"]
[]
[]
[null,"Лизинг"]
[null,"Лизингодатель","ИНН лизингодателя","Дата окончания Договора лизинга","Валюта","Сумма лизинговых платежей по договору,\nтыс. руб.","Всего оплачено лизинговых платежей,\nтыс. руб."]
[]
[]
[]
[null,"ИТОГО",null,null,null,{"$f":"SUM(F46:F48)","v":0},{"$f":"SUM(G46:G48)","v":0}]
[]
[null,"Комментарии:"]
[]
[]
[null,"Факторинг"]
[null,"Факторинговая компания","ИНН факторинговой компании","Сумма лимита,\nтыс. руб.","Основные дебиторы (для регрессного) / поставщики (для безрегрессного)","ИНН","Задолженность на последнюю отчетную дату,\nтыс. руб.","Задолженность на текущую дату,\nтыс. руб.","Ставка,\n% годовых"]
[]
[]
[]
[null,"ИТОГО",null,{"$f":"SUM(D56:D58)","v":0},null,null,{"$f":"SUM(G56:G58)","v":0},{"$f":"SUM(H56:H58)","v":0}]
[]
[null,"Комментарии:"]
[]
[]
[null,"Наличие фактов предъявления банковской гарантии за последний отчетный квартал.",null,null,null,null,null,null,null,"Да/Нет"]
[]
[null,"ОБОСНОВАНИЕ КРЕДИТНОЙ СДЕЛКИ"]
[]
[null,"Обоснование цели, суммы и режима кредитования:"]
[]
[null,"Осуществляется в зависимости от цели использования кредитных ресурсов."]
[null,"Привлечение кредитных ресурсов должно быть обосновано Организацией в результате анализа производственного цикла и фактического состояния расчетов."]
[null,"Возможные цели использования кредитных ресурсов:"]
[null,"закупка сырья и материалов (для производственных предприятий), товаров для последующей перепродажи (для торговых компаний), приобретение основных средств (по проектам, не являющимся инвестиционными): обоснование производится с учетом основных условий договоров, на оплату которых будут направлены кредитные средства (стоимость, условия поставки и оплаты, график поставки, а также прочие условия, которые могут оказать влияние на исполнение сторонами своих обязательств по договорам);"]
[null,"погашение имеющейся задолженности организации: обоснование осуществляется путем предоставления документов, подтверждающих объемы задолженности и сроки ее погашения;"]
[null,"финансирование исполнения контракта (как правило, в рамках экспортных поставок или госзаказов): обоснование осуществляется с учетом графика поставок и объемов отгрузочных партий поставляемой по контракту продукции/графика выполнения строительных работ, условий расчетов по контракту (в том числе принимается во внимание наличие и объем авансовых платежей, степень фактического выполнения контракта) и прочих условий, оказывающих влияние на исполнение сторонами обязательств по контракту;"]
[null,"финансирование текущей деятельности организации: обоснование суммы и режима использования осуществляется на основе прогноза движения денежных средств на период кредитования, подтверждающего потребность в привлечении заемных средств."]
[]
[null,"Технико-экономическое обоснование привлекаемого кредитного продукта (Приложение 3 к Заявке-Анкете)."]
[]
[null,"СТРУКТУРА ОБЕСПЕЧЕНИЯ"]
[]
[null,"• Информация о видах залогового обеспечения по кредитному проекту с отражением характеристик предмета залога, его ликвидности, технического состояния, особенностей  хранения, местоположения и других особенностей, присущих каждому конкретному виду обеспечения:"]
[null,"• Данные, подтверждающие права собственности на передаваемое в залог имущество; наличие обременений предлагаемого в залог обеспечения:"]
[null,"• Информация о страховании предмета залога. При страховании  указывается программа страхования, страховой риск, страховая сумма, наименование страховой компании (выгодоприобретателем  по договору страхования должен быть Банк):"]
[null,"• Информация об обеспечении в форме гарантии, поручительств:"]
[null,"• Информация об оценке стоимости обеспечения (данные о балансовой, рыночной стоимости предмета залога), наличие акта оценки независимой оценочной компании:"]
[]
[null,"Должностное лицо, уполномоченное руководителем организации для осуществления контактов с Банком:"]
[]
[]
[null," (Должность, Ф.И.О.)"]
[null,"Обработка персональных данных, указанных в настоящей заявке-анкете, осуществляется Акционерным обществом «Акционерный Банк «РОССИЯ», расположенным по адресу Россия, 191124, г. Санкт-Петербург, пл. Растрелли, д. 2, лит. А (далее – Банк), с целью принятия решения о предоставлении услуг по кредитованию юридических лиц/индивидуальных предпринимателей, в связи с заключением и исполнением Кредитного договора (далее – Договор). Обработка осуществляется как с использованием средств автоматизации, так и без их использования следующими способами: сбор, запись, систематизация, накопление, хранение, уточнение (обновление, изменение), извлечение, использование, передача (предоставление, доступ) обезличивание, блокирование, удаление, уничтожение. Настоящая заявка-анкета, содержащиеся в ней персональные данные подлежат уничтожению по истечении 5 (пяти) лет после исполнения обязательств по Договору, если иное не установлено законодательством Российской Федерации."]
[]
[null,null,null,"Рабочий тел.",null,"моб. тел.",null,"e-mail"]
[]
[]
[]
[null,"(Должность руководителя)",null,null,"(Ф.И.О. руководителя)",null,null,null,"(Подпись руководителя)"]
[]
[null,null,null,"Рабочий тел.",null,"моб. тел.",null,"e-mail"]
[]
[]
[]
[null,"(Должность гл. бухгалтера)",null,null,"(Ф.И.О. гл. бухгалтера)",null,null,null,"(Подпись гл. бухгалтера)"]
[]
[null,null,null,"Рабочий тел.",null,"моб. тел.",null,"e-mail"]
[]
[]
[null,null,"М.П.",null,null,null,null,null,"20__ г."]

{"sheet":"Обороты","index":2,"n_rows":18,"n_cols":9,"rows_kept":18,"cut":false,"hidden":false,"merged":[[0,0,0,8]]}
["Чистый кредитовый оборот по счетам cl_class (поступления выручки) за последние 12 месяцев - по месяц, предшествующий дате рассмотрения заявки на КК (тыс. руб.): "]
[]
["Месяц","БАНК 1","БАНК 2","БАНК 3","БАНК 4","БАНК 5","БАНК 6","БАНК 7","ИТОГО"]
[{"$f":"EDATE(form_date,-12)","v":{"$error":"#NUM!"}},null,null,null,null,null,null,null,{"$f":"SUM(B4:H4)","v":0}]
[{"$f":"EDATE(form_date,-11)","v":{"$error":"#NUM!"}},null,null,null,null,null,null,null,0]
[{"$f":"EDATE(form_date,-10)","v":{"$error":"#NUM!"}},null,null,null,null,null,null,null,0]
[{"$f":"EDATE(form_date,-9)","v":{"$error":"#NUM!"}},null,null,null,null,null,null,null,0]
[{"$f":"EDATE(form_date,-8)","v":{"$error":"#NUM!"}},null,null,null,null,null,null,null,0]
[{"$f":"EDATE(form_date,-7)","v":{"$error":"#NUM!"}},null,null,null,null,null,null,null,0]
[{"$f":"EDATE(form_date,-6)","v":{"$error":"#NUM!"}},null,null,null,null,null,null,null,0]
[{"$f":"EDATE(form_date,-5)","v":{"$error":"#NUM!"}},null,null,null,null,null,null,null,0]
[{"$f":"EDATE(form_date,-4)","v":{"$error":"#NUM!"}},null,null,null,null,null,null,null,0]
[{"$f":"EDATE(form_date,-3)","v":{"$error":"#NUM!"}},null,null,null,null,null,null,null,0]
[{"$f":"EDATE(form_date,-2)","v":{"$error":"#NUM!"}},null,null,null,null,null,null,null,0]
[{"$f":"EDATE(form_date,-1)","v":{"$error":"#NUM!"}},null,null,null,null,null,null,null,0]
["Итог",{"$f":"SUM(B4:B15)","v":0},{"$f":"SUM(C4:C15)","v":0},0,0,0,0,0,0]
["Средний оборот",{"$f":"B$16/12","v":0},{"$f":"C$16/12","v":0},0,0,0,0,0,0]
["Доля оборотов, проводимых по банку, %",{"$f":"IFERROR(B$16/$I$16,0)","v":0},{"$f":"IFERROR(C$16/$I$16,0)","v":0},0,0,0,0,0,{"$f":"SUM(B18:H18)","v":0}]

{"sheet":"Прил. 1","index":3,"n_rows":13,"n_cols":4,"rows_kept":13,"cut":false,"hidden":false,"merged":[[0,1,0,3],[2,1,2,3],[12,1,12,3]]}
[null,"Приложение 1 к Заявке-Анкете"]
[]
[null,"Схема дочерних и зависимых компаний (Наименование компании и ИНН) входящих с юр.лицом, подавшим заявку, в состав финансово-промышленных групп и холдингов (в том числе неформальных)."]
[null,"Наименование компании","ИНН","Аффилированность\n(собственники/ экономические связи)"]
[]
[]
[]
[]
[]
[]
[]
[]
[null,"Блок-схема операционных и финансовых взаимоотношений между компаниями холдинга и внешними контрагентами."]

{"sheet":"Прил. 2","index":4,"n_rows":32,"n_cols":21,"rows_kept":32,"cut":false,"hidden":false,"merged":[[3,10,3,17],[3,18,3,20],[1,0,1,3],[11,0,11,14],[3,0,3,9]]}
[null,null,null,null,null,null,null,null,null,null,null,null,null,null,null,null,null,null,null,null,"Приложение 2 к Заявке-Анкете"]
["Информация о действующей контрактной базе по состоянию на",null,null,null,"20__"]
[null,null,null,null,null,null,null,null,null,null,null,null,null,null,null,null,null,null,null,null,"(тыс. руб.)"]
["Общая информация по контрактам",null,null,null,null,null,null,null,null,null,"Срез состояния расчетов по контракту",null,null,null,null,null,null,null,"Реквизиты/залоги"]
["Наименование объекта","№ контракта","Заказчик","дата заключения","Дата исполнения контракта по договору первоначальная","Дата планируемого фактического исполнения контракта ","Сумма контракта","Сумма контракта с учетом планируемого увеличения ","Необходимые ЗАТРАТЫ на выполнение работ для исполнения контракта","Планируемая валовая маржа по контракту на дату заключения ","Всего получено от заказчика в т.ч. Аванс","Аванс полученный ","Поступило от заказчика за выполненные работы","Остаток поступлений (к оплате) до конца срока контракта","Заактированные ЗАТРАТЫ, но не оплаченые на текущую дату / ЗАТРАТЫ в составе ДЗ в балансе","не актированные (произведеннеые) ЗАТРАТЫ на выполнение работ ","произведенные авансы на закупку оборудования / материалов, выполнение СМР и пр работ","ИТОГО остаток ЗАТРАТ","Наименование банка, в котором открыт счет, указанный в реквизитах контракта (куда поступает выручка)","Наименование Банка залогодержателя прав по контракту (в т.ч. какой кредитный продукт и на какую сумму получен)","остаток к оплате поставщикам / подрядчикам за оборудование "]
[null,null,null,null,null,null,null,null,null,{"$f":"G6-I6","v":0},null,null,null,{"$f":"G6-K6","v":0},null,null,null,{"$f":"I6-O6-P6-Q6","v":0}]
[null,null,null,null,null,null,null,null,null,0,null,null,null,{"$f":"G7-K7","v":0},null,null,null,{"$f":"I7-O7-P7-Q7","v":0}]
[null,null,null,null,null,null,null,null,null,0,null,null,null,0,null,null,null,0]
[null,null,null,null,null,null,null,null,null,0,null,null,null,0,null,null,null,0]
["ИТОГО",null,null,null,null,null,{"$f":"SUM(G6:G9)","v":0},0,0,0,0,0,0,0,0,0,0,0,null,null,{"$f":"SUM(U6:U9)","v":0}]
[]
["Постоянные издержки в месяц на содержание компании"]
[null,"январь","февраль","март","апрель","май","июнь","июль","август","сентябрь","октябрь","ноябрь","декабрь","итого за год","доля в пост изд"]
["зарплата АУП",null,null,null,null,null,null,null,null,null,null,null,null,{"$f":"SUM(B14:M14)","v":0},{"$f":"IFERROR(N14/$N$25,0)","v":0}]
["аренда",null,null,null,null,null,null,null,null,null,null,null,null,{"$f":"SUM(B15:M15)","v":0},{"$f":"IFERROR(N15/$N$25,0)","v":0}]
["налоги",null,null,null,null,null,null,null,null,null,null,null,null,0,0]
["транспортные издержки",null,null,null,null,null,null,null,null,null,null,null,null,0,0]
["коммунальные затраты",null,null,null,null,null,null,null,null,null,null,null,null,0,0]
["связь и коммуникации",null,null,null,null,null,null,null,null,null,null,null,null,0,0]
["%% по кредитам",null,null,null,null,null,null,null,null,null,null,null,null,0,0]
["комиссии по гарантиям",null,null,null,null,null,null,null,null,null,null,null,null,0,0]
["банковское обслуживание",null,null,null,null,null,null,null,null,null,null,null,null,0,0]
["охрана",null,null,null,null,null,null,null,null,null,null,null,null,0,0]
["прочее",null,null,null,null,null,null,null,null,null,null,null,null,0,0]
["ВСЕГО",{"$f":"SUM(B14:B24)","v":0},0,0,0,0,0,0,0,0,0,0,0,0,0]
[]
["Динамика контрактации в…",null,"изменение контрактации","изменение контрактации"]
[null,"2014 г"]
[null,"2015 г",null,{"$f":"IFERROR((C29-C28)/C29,0)","v":0}]
[null,"2016 г",null,{"$f":"IFERROR((C30-C29)/C30,0)","v":0}]
[null,"2017 г",null,0]
[null,"2018 г",null,0]

{"sheet":"Прил. 3","index":5,"n_rows":43,"n_cols":6,"rows_kept":43,"cut":false,"hidden":false,"merged":[[20,1,20,5],[21,1,21,5],[24,2,24,5],[42,1,42,5],[39,4,39,5],[25,2,25,5],[26,2,26,5],[27,2,27,5],[28,2,28,5],[29,2,29,5],[12,2,12,5],[14,2,14,5],[17,1,17,5],[18,1,18,5],[19,1,19,5],[0,1,0,5],[4,2,4,5],[6,2,6,5],[8,2,8,5],[10,2,10,5],[2,1,2,5]]}
[null,"Приложение № 3 к Заявке-Анкете"]
[]
[null,"ТЕХНИКО-ЭКОНОМИЧЕСКОЕ ОБОСНОВАНИЕ СДЕЛКИ*"]
[]
[null,"1. Наименование Заемщика"]
[]
[null,"2. Сфера деятельности"]
[]
[null,"3. Размер требуемого кредита"]
[]
[null,"4. Назначение кредита"]
[]
[null,"5. Товар /продукция будет реализована"]
[]
[null,"6. Дополнительные сведения:"]
[]
[null,"7. Расходы по сделке составят:"]
[]
[]
[]
[]
[]
[]
[null,"8. Доходы составят:"]
[null,"Доходы от реализации"]
[null,"Проценты за кредит"]
[null,"Налоги"]
[null,"Прибыль составит"]
[null,"Рентабельность сделки"]
[null,"Период окупаемости"]
[]
[null,"Подписи:"]
[]
[]
[null,"(Должность руководителя)",null,"(Ф.И.О. руководителя)",null,"(Подпись руководителя)"]
[]
[]
[null,"(Гл. бухгалтер)",null,"(Ф.И.О. гл. бухгалтера)",null,"(Подпись гл. бухгалтера)"]
[]
[null,"М.П.",null,null,"20    г."]
[]
[]
[null,"* Предоставляется в случае рассмотрения заявок на предоставление  финансирования юридическим лицам в целях реализации Инвестиционных проектов"]

{"sheet":"Прил. 4.1","index":6,"n_rows":48,"n_cols":15,"rows_kept":48,"cut":false,"hidden":false,"merged":[[42,12,42,14],[44,12,44,14],[45,12,45,14],[47,12,47,13],[0,1,0,14],[2,1,2,14],[3,1,3,14],[45,3,45,6],[5,2,5,13],[5,1,6,1],[5,14,6,14],[42,3,42,6],[41,3,41,6],[44,3,44,6],[41,12,41,14]]}
[null,"Приложение № 4.1 к Заявке-Анкете"]
[]
[null,"Фактические денежные потоки за последний завершенный календарный год"]
[null,"(данная таблица является примерной, допускается предоставление указанных сведений по собственной форме организации)"]
[null,null,null,null,null,null,null,null,null,null,null,null,null,null,"(Тыс. руб.)"]
[null,"Основные статьи","20__",null,null,null,null,null,null,null,null,null,null,null,"Всего"]
[null,null,"январь","февраль","март","апрель","май","июнь","июль","август","сентябрь","октябрь","ноябрь","декабрь"]
[null,"1. Текущая деятельность"]
[null,"Поступления средств:"]
[null,"выручка от (реализации продукции, товаров, услуг и т.п.)",null,null,null,null,null,null,null,null,null,null,null,null,{"$f":"SUM($C10:$N10)","v":0}]
[null,"Расходование средств"]
[null,"Материалы, запчасти, сырье",null,null,null,null,null,null,null,null,null,null,null,null,{"$f":"SUM($C12:$N12)","v":0}]
[null,"Энергоносители",null,null,null,null,null,null,null,null,null,null,null,null,{"$f":"SUM($C13:$N13)","v":0}]
[null,"Зарплата с обязательными платежами и аналогичные выплаты",null,null,null,null,null,null,null,null,null,null,null,null,0]
[null,"Транспортные расходы и таможенные платежи",null,null,null,null,null,null,null,null,null,null,null,null,0]
[null,"Услуги сторонних организаций",null,null,null,null,null,null,null,null,null,null,null,null,0]
[null,"Административные и управленческие расходы",null,null,null,null,null,null,null,null,null,null,null,null,0]
[null,"Налоги",null,null,null,null,null,null,null,null,null,null,null,null,0]
[null,"Прочие расходы",null,null,null,null,null,null,null,null,null,null,null,null,0]
[null,"Денежный поток по текущей деятельности (1)",{"$f":"C$10-SUM(C$12:C$19)","v":0},{"$f":"D$10-SUM(D$12:D$19)","v":0},0,0,0,0,0,0,0,0,0,0,0]
[null,"2. Инвестиционная деятельность"]
[null,"Поступления средств"]
[null,"Поступления от реализации основных средств",null,null,null,null,null,null,null,null,null,null,null,null,{"$f":"SUM($C23:$N23)","v":0}]
[null,"Доходы от инвестиций в другие предприятия",null,null,null,null,null,null,null,null,null,null,null,null,{"$f":"SUM($C24:$N24)","v":0}]
[null,"Расходование средств"]
[null,"Капитальные вложения",null,null,null,null,null,null,null,null,null,null,null,null,{"$f":"SUM($C26:$N26)","v":0}]
[null,"Инвестиционные вложения в другие предприятия",null,null,null,null,null,null,null,null,null,null,null,null,{"$f":"SUM($C27:$N27)","v":0}]
[null,"Денежный поток по инвестиционной деятельности (2)",{"$f":"C$23+C$24-C$26-C$27","v":0},{"$f":"D$23+D$24-D$26-D$27","v":0},0,0,0,0,0,0,0,0,0,0,0]
[null,"Денежный поток по текущей и инвестиционной деятельности",{"$f":"C$20+C$28","v":0},{"$f":"D$20+D$28","v":0},0,0,0,0,0,0,0,0,0,0,0]
[null,"3. Финансовая деятельность"]
[null,"Поступления средств"]
[null,"Получение кредитов, займов, в том числе: кредиты в ",null,null,null,null,null,null,null,null,null,null,null,null,{"$f":"SUM($C32:$N32)","v":0}]
[null,"Продажа ценных бумаг",null,null,null,null,null,null,null,null,null,null,null,null,{"$f":"SUM($C33:$N33)","v":0}]
[null,"Расходование средств"]
[null,"Погашение кредитов, займов, в том числе: кредиты в",null,null,null,null,null,null,null,null,null,null,null,null,{"$f":"SUM($C35:$N35)","v":0}]
[null,"Денежный поток по финансовой деятельности (3)",{"$f":"C$32+C$33-C$35","v":0},{"$f":"D$32+D$33-D$35","v":0},0,0,0,0,0,0,0,0,0,0,0]
[null,"Денежный поток (1) + (2) + (3)",{"$f":"C$20+C$28+C$36","v":0},{"$f":"D$20+D$28+D$36","v":0},0,0,0,0,0,0,0,0,0,0,0]
[null,"Остаток денежных средств на конец периода"]
[]
[null,"Подписи"]
[]
[]
[null,"(Должность руководителя)",null,"(Ф.И.О. руководителя)",null,null,null,null,null,null,null,null,"(Подпись руководителя)"]
[]
[]
[null,"(Должность гл. бухгалтер)",null,"(Ф.И.О. гл. бухгалтера)",null,null,null,null,null,null,null,null,"(Подпись гл. бухгалтера)"]
[]
[null,"М.П.",null,null,null,null,null,null,null,null,null,null,null,null,"20__ г."]

{"sheet":"Прил. 4.2","index":7,"n_rows":50,"n_cols":12,"rows_kept":50,"cut":false,"hidden":false,"merged":[[49,9,49,10],[0,1,0,11],[2,1,2,11],[3,1,3,11],[44,9,44,11],[47,9,47,11],[5,1,6,1],[5,3,5,6],[5,7,5,10],[5,11,6,11],[43,9,43,11],[46,9,46,11],[43,3,43,6],[44,3,44,6],[46,3,46,6],[47,3,47,6]]}
[null,"Приложение № 4.2 к Заявке-Анкете"]
[]
[null,"Прогнозируемые денежные потоки на период действия кредитного продукта"]
[null,"(данная таблица является примерной, допускается предоставление указанных сведений по собственной форме организации)"]
[null,null,null,null,null,null,null,null,null,null,null,"(Тыс. руб.)"]
[null,"Основные статьи","20__","20__",null,null,null,"20__",null,null,null,"Всего"]
[null,null,"факт","I кв.","II кв.","III кв.","IV кв.","I кв.","II кв.","III кв.","IV кв."]
[null,"Остаток денежных средств на начало периода",null,null,{"$f":"D$40","v":0},{"$f":"E$40","v":0},0,0,0,0,0]
[null,"1. Текущая деятельность"]
[null,"Поступления средств:"]
[null,"выручка от (реализации продукции, товаров, услуг и т.п.)",null,null,null,null,null,null,null,null,null,{"$f":"SUM($D11:$K11)","v":0}]
[null,"Расходование средств"]
[null,"Материалы, запчасти, сырье",null,null,null,null,null,null,null,null,null,{"$f":"SUM($D13:$K13)","v":0}]
[null,"Энергоносители",null,null,null,null,null,null,null,null,null,{"$f":"SUM($D14:$K14)","v":0}]
[null,"Зарплата с обязательными платежами и аналогичные выплаты",null,null,null,null,null,null,null,null,null,0]
[null,"Транспортные расходы и таможенные платежи",null,null,null,null,null,null,null,null,null,0]
[null,"Услуги сторонних организаций",null,null,null,null,null,null,null,null,null,0]
[null,"Административные и управленческие расходы",null,null,null,null,null,null,null,null,null,0]
[null,"Налоги",null,null,null,null,null,null,null,null,null,0]
[null,"Прочие расходы",null,null,null,null,null,null,null,null,null,0]
[null,"Денежный поток по текущей деятельности (1)",{"$f":"C$11-SUM(C$13:C$20)","v":0},{"$f":"D$11-SUM(D$13:D$20)","v":0},0,0,0,0,0,0,0,0]
[null,"2. Инвестиционная деятельность"]
[null,"Поступления средств"]
[null,"Поступления от реализации основных средств",null,null,null,null,null,null,null,null,null,{"$f":"SUM($D24:$K24)","v":0}]
[null,"Доходы от инвестиций в другие предприятия",null,null,null,null,null,null,null,null,null,0]
[null,"Расходование средств"]
[null,"Капитальные вложения",null,null,null,null,null,null,null,null,null,0]
[null,"Инвестиционные вложения в другие предприятия",null,null,null,null,null,null,null,null,null,0]
[null,"Денежный поток по инвестиционной деятельности (2)",{"$f":"C$24+C$25-C$27-C$28","v":0},{"$f":"D$24+D$25-D$27-D$28","v":0},0,0,0,0,0,0,0,0]
[null,"Денежный поток по текущей и инвестиционной деятельности",{"$f":"C$21+C$29","v":0},{"$f":"D$21+D$29","v":0},0,0,0,0,0,0,0,0]
[null,"3. Финансовая деятельность"]
[null,"Поступления средств"]
[null,"Получение кредитов, займов, в том числе: кредиты в ",null,null,null,null,null,null,null,null,null,{"$f":"SUM($D33:$K33)","v":0}]
[null,"Продажа ценных бумаг",null,null,null,null,null,null,null,null,null,{"$f":"SUM(D34:K34)","v":0}]
[null,"Расходование средств"]
[null,"Погашение кредитов, займов, в том числе: кредиты в",null,null,null,null,null,null,null,null,null,{"$f":"SUM($D36:$K36)","v":0}]
[null,"Обслуживание кредитов (%, комиссии)",null,null,null,null,null,null,null,null,null,0]
[null,"Денежный поток по финансовой деятельности (3)",{"$f":"C$33+C$34-C$36-C$37","v":0},{"$f":"D$33+D$34-D$36-D$37","v":0},0,0,0,0,0,0,0,0]
[null,"Денежный поток (1) + (2) + (3)",{"$f":"C$30+C$38","v":0},{"$f":"D$30+D$38","v":0},0,0,0,0,0,0,0,0]
[null,"Остаток денежных средств на конец периода",null,{"$f":"D$8+D$39","v":0},{"$f":"E$8+E$39","v":0},0,0,0,0,0,0,0]
[]
[null,"Подписи"]
[]
[]
[null,"(Должность руководителя)",null,"(Ф.И.О. руководителя)",null,null,null,null,null,"(Подпись руководителя)"]
[]
[]
[null,"(Должность гл. бухгалтер)",null,"(Ф.И.О. гл. бухгалтера)",null,null,null,null,null,"(Подпись гл. бухгалтера)"]
[]
[null,"М.П.",null,null,null,null,null,null,null,null,null,"20__ г."]

{"sheet":"Прил. 5","index":8,"n_rows":148,"n_cols":10,"rows_kept":148,"cut":false,"hidden":false,"merged":[[143,1,143,2],[144,1,144,2],[146,1,146,9],[147,1,147,9],[132,1,132,2],[133,1,133,2],[134,1,134,2],[135,1,135,2],[136,1,136,2],[137,1,137,2],[138,1,138,2],[139,1,139,2],[140,1,140,2],[141,1,141,2],[142,1,142,2],[148,1,148,9],[72,1,72,9],[125,1,125,7],[126,1,126,2],[79,8,79,9],[121,1,121,9],[122,1,122,9],[123,1,123,9],[74,1,74,3],[76,1,76,3],[74,4,74,5],[127,1,127,2],[128,1,128,2],[129,1,129,2],[130,1,130,2],[131,1,131,2],[68,1,68,9],[69,1,69,9],[43,1,43,9],[44,1,44,9],[46,1,46,9],[53,1,53,9],[54,1,54,9],[70,1,70,9],[79,1,80,1],[79,2,79,3],[79,4,79,5],[79,6,79,7],[76,4,76,5],[0,1,0,9],[12,1,12,9],[13,1,13,9],[14,1,14,9],[5,2,5,5],[6,2,6,5],[7,2,7,5],[8,2,8,5],[9,2,9,5],[10,2,10,5],[16,1,16,9],[23,1,23,9],[2,1,2,9],[3,1,3,9],[24,1,24,9],[26,1,26,9],[33,1,33,9],[34,1,34,9],[36,1,36,9],[66,1,66,2],[56,1,56,9],[63,1,63,9],[64,1,64,9]]}
[null,"Приложение 5 к Заявке-Анкете"]
[]
[null,"Информация о Группе компаний, вкл. анализ финансовой отчетности Группы."]
[null,"В описательной части указываются: год образования Группы, изменения Группы к текущей дате, при наличии изменений видов бизнеса – причины. В табличной части – данные по всем компаниям Группы (лица, имеющие юридическую и/или экономическую взаимосвязь), которые ведут деятельность. (в тыс.руб. за последний календарный год)"]
[]
[null,"Наименование компании Группы, ИНН","Вид деятельности (роль в Группе)\nНапример: операционная компания, балансодержатель активов, холдинговая компания – центр прибыли, производственная компания.",null,null,null,"Выручка\nза ____ г.","Прибыль от продаж\nза ____ г.","Кредиты и займы\nна 01.01.____","Собственный капитал\nна 01.01.____"]
[]
[]
[]
[]
[]
[]
[null,"Описание деятельности Группы:"]
[null,"(описание схемы взаимодействия (бизнес-модели), материально технической базы (наличие собственных/ арендованных активов) клиента, возможность увеличения объема продаж за счет избытка мощностей или иных способов (указать), наличие сезонности в бизнесе и пр.)"]
[]
[]
[null,"Банковские кредиты"]
[null,"Наименование кредитора","Дата договора о кредитовании","Валюта кредита","Максимальный лимит кредитования,\nтыс. руб.","Остаток ссудной задолженности,\nтыс. руб.","Вид","Ставка,\n% годовых","Дата возврата по договору","Вид обеспечения"]
[]
[]
[]
[null,"ИТОГО"]
[]
[null,"Комментарии:"]
[]
[]
[null,"Банковские гарантии/непокрытые аккредитивы"]
[null,"Гарант","Бенефициар","ИНН бенефициара","Вид гарантии","Сумма лимита,\nтыс. руб.","Сумма гарантии,\nтыс. руб.","Размер комиссии,\n% годовых","Дата окончания действия","Вид обеспечения"]
[]
[]
[]
[null,"ИТОГО"]
[]
[null,"Комментарии:"]
[]
[]
[null,"Выданные поручительства/предоставленные обеспечения (на последнюю отчетную дату)"]
[null,"Наименование Банка-кредитора","Наименование заемщика","ИНН заемщика","Остаток задолженности,\nтыс. руб.","Дата окончания договора","Ставка","Вид обеспечения","Рыночная стоимость обеспечения","Залоговая стоимость обеспечения"]
[]
[]
[]
[null,"ИТОГО"]
[]
[null,"Комментарии:"]
[]
[]
[null,"Лизинг"]
[null,"Лизингодатель","ИНН лизингодателя","Дата окончания Договора лизинга","Валюта","Сумма лизинговых платежей по договору, тыс. руб.","Всего оплачено лизинговых платежей, тыс. руб."]
[]
[]
[]
[null,"ИТОГО"]
[]
[null,"Комментарии:"]
[]
[]
[null,"Факторинг"]
[null,"Факторинговая компания","ИНН факторинговой компании","Сумма лимита,\nтыс. руб.","Основные дебиторы (для регрессного) / поставщики (для безрегрессного)","ИНН","Задолженность на последнюю отчетную дату,\nтыс. руб.","Задолженность на текущую дату,\nтыс. руб.","Ставка,\n% годовых"]
[]
[]
[]
[null,"ИТОГО"]
[]
[null,"Комментарии:"]
[]
[]
[null,"Ориентировочная общая сумма ежемесячного платежа:"]
[]
[null,"Прочая информация:"]
[null,"(например, наличие непокрытых аккредитивов и пр.)"]
[]
[]
[null,"Анализ финансового положения проведен на основании консолидированной бухгалтерской отчетности/ отчетности по МСФО Группы за два завершенных календарных года и последний доступный отчетный период."]
[]
[null,"Отчетность за последний завершенный календарный год аудирована"]
[]
[null,"Аудиторское мнение"]
[]
[null,null,null,null,null,null,null,null,"(тыс. руб.)"]
[null,"АКТИВ","20__",null,"20__",null,"Изменение за 12 мес.",null,"Текущий год"]
[null,null,"тыс. руб.","Доля в ВБ, %","тыс. руб.","Доля в ВБ, %","тыс. руб.","%","3/6/9 мес. 20__","Доля в ВБ, %"]
[null,"Раздел I"]
[null,"Нематериальные активы",null,{"$f":"IFERROR($C83/$C$98,0)","v":0},null,{"$f":"IFERROR($E83/$E$98,0)","v":0},{"$f":"E83-C83","v":0},{"$f":"IFERROR($E83/$C83-1,0)","v":0},null,{"$f":"IFERROR($I83/$I$98,0)","v":0}]
[null,"Основные средства",null,{"$f":"IFERROR($C84/$C$98,0)","v":0},null,0,0,{"$f":"IFERROR($E84/$C84-1,0)","v":0},null,0]
[null,"Доход. влож. в мат. ценности ",null,0,null,0,0,0,null,0]
[null,"Финансовые вложения",null,0,null,0,0,0,null,0]
[null,"Отлож. налоговые активы",null,0,null,0,0,0,null,0]
[null,"Прочие внеоборотные",null,0,null,0,0,0,null,0]
[null,"Внеоборотные активы",{"$f":"SUM(C83:C88)","v":0},0,{"$f":"SUM(E83:E88)","v":0},0,0,0,{"$f":"SUM(I83:I88)","v":0},0]
[null,"Раздел II"]
[null,"Запасы",null,{"$f":"IFERROR($C91/$C$98,0)","v":0},null,{"$f":"IFERROR($E91/$E$98,0)","v":0},{"$f":"E91-C91","v":0},0,null,{"$f":"IFERROR($I91/$I$98,0)","v":0}]
[null,"НДС по приобрет. Ценностям",null,{"$f":"IFERROR($C92/$C$98,0)","v":0},null,0,0,0,null,0]
[null,"Финансовые вложения",null,0,null,0,0,0,null,0]
[null,"Дебиторская задолженность",null,0,null,0,0,0,null,0]
[null,"Денежные средства",null,0,null,0,0,0,null,0]
[null,"Прочие оборотные активы",null,0,null,0,0,0,null,0]
[null,"Оборотные активы",{"$f":"SUM(C91:C96)","v":0},0,{"$f":"SUM(E91:E96)","v":0},0,0,0,{"$f":"SUM(I91:I96)","v":0},0]
[null,"БАЛАНС",{"$f":"C89+C97","v":0},null,{"$f":"E89+E97","v":0},null,0,0,{"$f":"I89+I97","v":0}]
[null,"ПАССИВ"]
[null,"Раздел III"]
[null,"Уставный капитал",null,{"$f":"IFERROR($C101/$C$120,0)","v":0},null,{"$f":"IFERROR($E101/$E$120,0)","v":0},{"$f":"E101-C101","v":0},{"$f":"IFERROR($E101/$C101-1,0)","v":0},null,{"$f":"IFERROR($I101/$I$120,0)","v":0}]
[null,"Собственные акции, выкупленные у акционеров",null,0,null,0,0,{"$f":"IFERROR($E102/$C102-1,0)","v":0},null,0]
[null,"Переоценка внеоб. активов",null,0,null,0,0,0,null,0]
[null,"Добавочный капитал ",null,0,null,0,0,0,null,0]
[null,"Резервный капитал",null,0,null,0,0,0,null,0]
[null,"Нераспределенная прибыль",null,0,null,0,0,0,null,0]
[null,"Капитал и резервы",{"$f":"SUM(C101:C106)","v":0},0,{"$f":"SUM(E101:E106)","v":0},0,0,0,{"$f":"SUM(I101:I106)","v":0},0]
[null,"Раздел IV"]
[null,"Заемные средства",null,{"$f":"IFERROR($C109/$C$120,0)","v":0},null,{"$f":"IFERROR($E109/$E$120,0)","v":0},{"$f":"E109-C109","v":0},0,null,{"$f":"IFERROR($I109/$I$120,0)","v":0}]
[null,"Отлож. налог. обязательства",null,{"$f":"IFERROR($C110/$C$120,0)","v":0},null,{"$f":"IFERROR($E110/$E$120,0)","v":0},{"$f":"E110-C110","v":0},0,null,{"$f":"IFERROR($I110/$I$120,0)","v":0}]
[null,"Прочие обязательства",null,{"$f":"IFERROR($C111/$C$120,0)","v":0},null,{"$f":"IFERROR($E111/$E$120,0)","v":0},{"$f":"E111-C111","v":0},0,null,{"$f":"IFERROR($I111/$I$120,0)","v":0}]
[null,"долгосрочные обязательства",{"$f":"SUM(C109:C111)","v":0},{"$f":"IFERROR($C112/$C$120,0)","v":0},{"$f":"SUM(E109:E111)","v":0},{"$f":"IFERROR($E112/$E$120,0)","v":0},{"$f":"E112-C112","v":0},0,{"$f":"SUM(I109:I111)","v":0},{"$f":"IFERROR($I112/$I$120,0)","v":0}]
[null,"Раздел IV"]
[null,"Заемные средства",null,{"$f":"IFERROR($C114/$C$120,0)","v":0},null,{"$f":"IFERROR($E114/$E$120,0)","v":0},{"$f":"E114-C114","v":0},0,null,{"$f":"IFERROR($I114/$I$120,0)","v":0}]
[null,"Кредиторская задолж-сть",null,0,null,0,0,0,null,0]
[null,"Доходы будущих периодов",null,0,null,0,0,0,null,0]
[null,"Оценочные обязательства",null,0,null,0,0,0,null,0]
[null,"Прочие обязательства",null,0,null,0,0,0,null,0]
[null,"Краткосрочные обязательства",{"$f":"SUM(C114:C118)","v":0},0,{"$f":"SUM(E114:E118)","v":0},0,0,0,{"$f":"SUM(I114:I118)","v":0},0]
[null,"БАЛАНС",{"$f":"C107+C112+C119","v":0},null,{"$f":"E107+E112+E119","v":0},null,0,0,{"$f":"I107+I112+I119","v":0}]
[]
[null,"Комментарии:"]
[null,"(анализ причин и возможных последствий существенных изменений статей Баланса (с долей более 10%), выводы о влиянии изменений на финансовое положение клиента. Краткие выводы по вертикальному и горизонтальному анализу балансаГруппы компаний."]
[]
[]
[null,"Отчет о финансовых результатах"]
[null,"Отчет о финансовых результатах",null,"20__","20__","Изменение,\nтыс. руб.","Изменение, %","3/6/9 мес. 20__"]
[null,"Выручка",null,null,null,{"$f":"E128-D128","v":0},{"$f":"IFERROR($E128/$D128 -1,0)","v":0}]
[null,"Себестоимость продаж",null,null,null,0,{"$f":"IFERROR($E129/$D129 -1,0)","v":0}]
[null,"Валовая прибыль (убыток)",null,{"$f":"D128-D129","v":0},{"$f":"E128-E129","v":0},0,0]
[null,"Коммерческие расходы ",null,null,null,0,0]
[null,"Управленческие расходы ",null,null,null,0,0]
[null,"Прибыль (убыток) от продаж ",null,{"$f":"D130-D131-D132","v":0},{"$f":"E130-E131-E132","v":0},0,0]
[null,"Доходы от участия в др. организациях",null,null,null,0,0]
[null,"Проценты к получению",null,null,null,0,0]
[null,"Проценты к уплате",null,null,null,0,0]
[null,"Прочие доходы",null,null,null,0,0]
[null,"Прочие расходы",null,null,null,0,0]
[null,"Прибыль (убыток) до налогообложения",null,{"$f":"D133+D134+D135-D136+D137-D138","v":0},{"$f":"E133+E134+E135-E136+E137-E138","v":0},0,0]
[null,"Текущий налог на прибыль",null,null,null,0,0]
[null,"в т.ч. пост. налоговые о/а",null,null,null,0,0]
[null,"Изменение отл. н/о",null,null,null,0,0]
[null,"Изменение отл. н/а",null,null,null,0,0]
[null,"Прочее",null,null,null,0,0]
[null,"Чистая прибыль /Убыток ",null,{"$f":"D139-D140+D142+D143+D144","v":0},{"$f":"E139-E140+E142+E143+E144","v":0},0,0]
[]
[null,"Комментарии:"]
[null,"(анализ динамики финансовых результатов, относительных показателей рентабельности, причин и возможных последствий существенных изменений, выводы о влиянии изменений на финансовую устойчивость Группы. Краткие выводы по составу группы: компании-центры прибыли, операционные компании."]

{"sheet":"data","index":9,"n_rows":68,"n_cols":3,"rows_kept":68,"cut":false,"hidden":true,"merged":[]}
["request_type",null,"autofit"]
["Единовременный кредит"]
["Возобновляемая кредитная линия"]
["Невозобновляемая кредитная линия"]
["Овердрафт"]
["Банковская гарантия"]
["Лимит выдачи банковских гарантий"]
["Непокрытый аккредитив"]
["Аккредитив с постфинансированием"]
["rating_moodys"]
["Aaa"]
["Aa1"]
["Aa2"]
["Aa3"]
["A1"]
["A2"]
["A3"]
["Baa1"]
["Baa2"]
["Baa3"]
["Ba1"]
["Ba2"]
["Ba3"]
["rating_sp"]
["AAA"]
["AA+"]
["AA"]
["AA-"]
["A+"]
["A"]
["A-"]
["BBB+"]
["BBB"]
["BBB-"]
["BB+"]
["BB"]
["BB-"]
["rating_fitch"]
["AAA"]
["AA+"]
["AA"]
["AA-"]
["A+"]
["A"]
["A-"]
["BBB+"]
["BBB"]
["BBB-"]
["BB+"]
["BB"]
["BB-"]
["rating_ru"]
["ruAAA"]
["ruAA+"]
["ruAA"]
["ruAA-"]
["ruA+"]
["ruA"]
["ruA-"]
["ruBBB+"]
["ruBBB"]
["ruBBB-"]
["ruBB+"]
["ruBB"]
["ruBB-"]
["ruB+"]
["ruB"]
["ruB-"]

{"sheet":"data_work","index":10,"n_rows":12,"n_cols":1,"rows_kept":12,"cut":false,"hidden":true,"merged":[]}
["form_type"]
["ЗАЯВКА-АНКЕТА ЗАЕМЩИКА/ПРИНЦИПАЛА (ЮРИДИЧЕСКОГО ЛИЦА)"]
["АНКЕТА ПОРУЧИТЕЛЯ (ЮРИДИЧЕСКОГО ЛИЦА)"]
["АНКЕТА ЗАЛОГОДАТЕЛЯ (ЮРИДИЧЕСКОГО ЛИЦА)"]
["filename"]
["Заявка-Анкета Заемщика Принципала - ЮЛ (Шаблон)"]
["Анкета Поручителя - ЮЛ (Шаблон)"]
["Анкета Залогодателя - ЮЛ (Шаблон)"]
["acc_class"]
["Заемщика"]
["Поручителя"]
["Залогодателя"]